bitfinex/quotes_BTCUSD_20241128
["timestamp","ask_amount","ask_price","bid_price","bid_amount"]
[1732762445395,0.37842221,95942.0,95941.0,0.0807589]
[1732762445617,0.37442221,95942.0,95941.0,0.0807589]
[1732762446090,0.021348,95942.0,95941.0,0.0807589]
[1732762446530,0.125577,95942.0,95941.0,0.0807589]
[1732762447211,0.118577,95942.0,95941.0,0.0807589]
[1732762447439,0.120577,95942.0,95941.0,0.0807589]
[1732762447626,0.116577,95942.0,95941.0,0.0807589]
[1732762448168,0.117577,95942.0,95941.0,0.0807589]
[1732762448634,0.119577,95942.0,95941.0,0.0807589]
[1732762449270,0.015348,95942.0,95941.0,0.0807589]
[1732762450530,0.012348,95942.0,95941.0,0.0807589]
[1732762450739,0.015348,95942.0,95941.0,0.0807589]
[1732762450953,0.002,95942.0,95941.0,0.0807589]
[1732762451165,0.3381564,95951.0,95941.0,0.0807589]
[1732762451378,0.003,95942.0,95941.0,0.0807589]
[1732762452047,0.104221,95950.0,95941.0,0.0807589]
[1732762452275,0.34716047,95951.0,95941.0,0.0807589]
[1732762452528,0.104225,95946.0,95941.0,0.0807589]
[1732762452754,0.34716047,95951.0,95941.0,0.0807589]
[1732762452755,0.104222,95949.0,95941.0,0.0807589]
[1732762453212,0.34716047,95951.0,95941.0,0.0807589]
[1732762453440,0.104221,95950.0,95941.0,0.0807589]
[1732762453661,0.104222,95949.0,95941.0,0.0807589]
[1732762454126,0.34716047,95951.0,95943.0,0.0771]
[1732762454127,0.19716047,95951.0,95943.0,0.0771]
[1732762454371,0.002,95949.0,95943.0,0.0771]
[1732762455517,0.001,95949.0,95943.0,0.0771]
[1732762455782,0.104223,95948.0,95943.0,0.0771]
[1732762455997,0.10284521,95947.0,95943.0,0.0771]
[1732762456207,0.104227,95944.0,95943.0,0.0771]
[1732762456685,0.104227,95944.0,95941.0,0.0008589]
[1732762456686,0.104229,95942.0,95941.0,0.0008589]
[1732762456890,0.20938043,95942.0,95941.0,0.0008589]
[1732762457337,0.27888043,95942.0,95941.0,0.0008589]
[1732762457578,0.27657421,95942.0,95941.0,0.0008589]
[1732762458013,0.27657421,95942.0,95941.0,0.0018589]
[1732762458489,0.23007421,95942.0,95941.0,0.0028589]
[1732762458705,0.23007421,95942.0,95941.0,0.0008589]
[1732762458964,0.23707421,95942.0,95941.0,0.0008589]
[1732762460076,0.24107421,95942.0,95941.0,0.0008589]
[1732762461427,0.43847421,95942.0,95941.0,0.0008589]
[1732762461649,0.51447421,95942.0,95941.0,0.0008589]
[1732762461886,0.43847421,95942.0,95941.0,0.0008589]
[1732762462141,0.45479485,95942.0,95941.0,0.0008589]
[1732762462798,0.46534272,95942.0,95941.0,0.0008589]
[1732762467394,0.44234272,95942.0,95941.0,0.0008589]
[1732762467616,0.39494272,95942.0,95941.0,0.0008589]
[1732762468083,0.24494272,95942.0,95941.0,0.0008589]
[1732762470342,0.14209751,95942.0,95941.0,0.0008589]
[1732762471463,0.03786851,95942.0,95941.0,0.0008589]
[1732762471699,0.03786851,95942.0,95941.0,0.1311589]
[1732762471700,0.02732064,95942.0,95941.0,0.1311589]
[1732762471920,0.011,95942.0,95941.0,0.1311589]
[1732762473258,0.007,95942.0,95941.0,0.1311589]
[1732762473474,0.011,95942.0,95941.0,0.1311589]
[1732762474154,0.0102462,95947.0,95941.0,0.1311589]
[1732762474370,0.11309141,95947.0,95941.0,0.1311589]
[1732762474587,0.002,95942.0,95941.0,0.0836589]
[1732762475092,0.10284521,95947.0,95941.0,0.0836589]
[1732762475555,0.104226,95945.0,95941.0,0.0836589]
[1732762476003,0.001,95942.0,95941.0,0.0836589]
[1732762476497,0.20807421,95942.0,95941.0,0.0018589]
[1732762476944,0.20807421,95942.0,95941.0,0.0008589]
[1732762477410,0.20707421,95942.0,95941.0,0.0008589]
[1732762478564,0.20807421,95942.0,95941.0,0.0008589]
[1732762483668,0.10384521,95942.0,95941.0,0.0008589]
[1732762484182,0.001,95942.0,95941.0,0.0008589]
[1732762484402,0.001,95942.0,95941.0,0.0785589]
[1732762485064,0.001,95942.0,95941.0,0.07561136]
[1732762485495,0.001,95942.0,95941.0,0.17984136]
[1732762485726,0.0017158,95951.0,95943.0,0.104228]
[1732762486360,0.0017158,95951.0,95941.0,0.07661136]
[1732762486361,0.0017158,95951.0,95941.0,0.07561136]
[1732762486572,0.0017158,95951.0,95942.0,0.104229]
[1732762486788,0.01200066,95951.0,95942.0,0.104229]
[1732762487210,0.0017158,95951.0,95942.0,0.104229]
[1732762487425,0.0017158,95951.0,95941.0,0.07661136]
[1732762488120,0.0017158,95951.0,95941.0,0.07561136]
[1732762488331,0.0027158,95951.0,95941.0,0.17984136]
[1732762488540,0.0027158,95951.0,95941.0,0.07561136]
[1732762488756,0.0017158,95951.0,95941.0,0.07561136]
[1732762489000,0.0027158,95951.0,95941.0,0.07561136]
[1732762489630,0.0027158,95951.0,95941.0,0.17984136]
[1732762489852,0.0027158,95951.0,95941.0,0.07561136]
[1732762491165,0.1069358,95951.0,95941.0,0.07561136]
[1732762491376,0.0027158,95951.0,95941.0,0.07561136]
[1732762492043,0.1069358,95951.0,95941.0,0.07561136]
[1732762492263,0.104221,95950.0,95941.0,0.07561136]
[1732762492470,0.104221,95950.0,95941.0,0.07646926]
[1732762493209,0.08486467,95951.0,95941.0,0.07646926]
[1732762493444,0.208444,95949.0,95941.0,0.07646926]
[1732762493651,0.208444,95949.0,95941.0,0.07746926]
[1732762493652,0.104223,95949.0,95941.0,0.07746926]
[1732762493883,0.18908467,95951.0,95941.0,0.07746926]
[1732762494100,0.104229,95942.0,95941.0,0.0018579]
[1732762494285,0.104229,95942.0,95941.0,0.0008579]
[1732762494989,0.416896,95947.0,95941.0,0.0008579]
[1732762494990,0.104225,95946.0,95941.0,0.0008579]
[1732762495196,0.14804521,95949.0,95941.0,0.0008579]
[1732762495197,0.104228,95944.0,95941.0,0.0008579]
[1732762495625,0.104228,95943.0,95941.0,0.0018579]
[1732762496063,0.208448,95947.0,95941.0,0.0018579]
[1732762496281,0.104227,95944.0,95941.0,0.0028579]
[1732762496495,0.104229,95942.0,95941.0,0.0028579]
[1732762496681,0.104229,95942.0,95941.0,0.0018579]
[1732762496957,0.104227,95945.0,95941.0,0.0018579]
[1732762497180,0.104227,95945.0,95941.0,0.0028579]
[1732762497640,0.31128921,95949.0,95941.0,0.0018579]
[1732762498083,0.208448,95947.0,95941.0,0.0018579]
[1732762498299,0.104229,95942.0,95941.0,0.0028579]
[1732762498517,0.20707421,95942.0,95941.0,0.0018579]
[1732762499601,0.20707421,95942.0,95941.0,0.0028579]
[1732762499826,0.20707421,95942.0,95941.0,0.0018579]
[1732762500060,0.20707421,95942.0,95941.0,0.0008579]
[1732762500315,0.20707421,95942.0,95941.0,0.0018579]
[1732762500758,0.08386467,95951.0,95941.0,0.0008579]
[1732762500991,0.10284521,95946.0,95941.0,0.0008579]
[1732762501241,0.104227,95944.0,95941.0,0.0008579]
[1732762501475,0.001,95942.0,95941.0,0.0008579]
[1732762502190,0.20707121,95946.0,95941.0,0.0008579]
[1732762502427,0.10284521,95946.0,95941.0,0.0008579]
[1732762502889,0.0017158,95951.0,95941.0,0.0008579]
[1732762503103,0.0017158,95951.0,95942.0,0.082]
[1732762503318,0.0017158,95951.0,95943.0,0.30201915]
[1732762503319,0.0047158,95951.0,95943.0,0.30201915]
[1732762503556,0.0047158,95951.0,95942.0,0.082]
[1732762503557,0.0047158,95951.0,95944.0,0.30201615]
[1732762503769,0.0047158,95951.0,95948.0,0.104222]
[1732762504196,0.0047158,95951.0,95950.0,0.10422]
[1732762504658,0.0017158,95951.0,95950.0,0.10422]
[1732762504874,0.0047158,95951.0,95950.0,0.10422]
[1732762505517,0.0047158,95951.0,95950.0,0.23542]
[1732762505741,0.0047158,95951.0,95950.0,0.34826521]
[1732762505980,0.1267,95984.0,95956.0,0.184914]
[1732762505981,0.0498,95984.0,95956.0,0.184914]
[1732762506221,0.104186,95982.0,95956.0,0.184914]
[1732762506439,0.104187,95981.0,95956.0,0.184914]
[1732762506664,0.258169,95984.0,95956.0,0.184914]
[1732762506665,0.0498,95984.0,95956.0,0.184914]
[1732762506894,0.104187,95981.0,95956.0,0.184914]
[1732762507122,0.10591,95978.0,95956.0,0.184914]
[1732762507353,0.208385,95976.0,95956.0,0.184914]
[1732762507626,0.0027156,95957.0,95956.0,0.0817]
[1732762507877,0.1069286,95957.0,95956.0,0.001]
[1732762508115,0.1069286,95957.0,95943.0,0.23369236]
[1732762508116,0.10456081,95957.0,95937.0,0.09347694]
[1732762508378,0.208431,95955.0,95932.0,0.09377694]
[1732762508593,0.10515105,95954.0,95932.0,0.0003]
[1732762508815,0.208439,95951.0,95932.0,0.0003]
[1732762509035,0.10284521,95951.0,95932.0,0.0003]
[1732762509257,0.208441,95950.0,95932.0,0.0003]
[1732762509492,0.10284521,95951.0,95932.0,0.0003]
[1732762509493,0.10284521,95951.0,95933.0,0.104239]
[1732762509924,0.104222,95949.0,95933.0,0.104239]
[1732762510147,0.10284521,95951.0,95932.0,0.0003]
[1732762510384,0.104222,95949.0,95932.0,0.0003]
[1732762510610,0.104224,95947.0,95932.0,0.0003]
[1732762511071,0.104224,95947.0,95932.0,0.10454]
[1732762511289,0.10284521,95951.0,95932.0,0.0003]
[1732762511290,0.208444,95949.0,95932.0,0.0003]
[1732762511525,0.10284521,95951.0,95932.0,0.0003]
[1732762511731,0.104223,95948.0,95941.0,0.0018579]
[1732762512181,0.104223,95948.0,95941.0,0.0028579]
[1732762512391,0.104223,95948.0,95941.0,0.0008579]
[1732762513513,0.10284521,95951.0,95941.0,0.0008579]
[1732762513514,0.104225,95946.0,95941.0,0.0008579]
[1732762513736,0.104225,95946.0,95941.0,0.0018579]
[1732762513965,0.208441,95950.0,95941.0,0.0018579]
[1732762513966,0.104223,95948.0,95941.0,0.0018579]
[1732762514413,0.104224,95947.0,95941.0,0.0008579]
[1732762514665,0.104224,95947.0,95941.0,0.0018579]
[1732762515117,0.104223,95948.0,95941.0,0.0028579]
[1732762515369,0.104223,95948.0,95941.0,0.0008579]
[1732762515615,0.104224,95947.0,95941.0,0.0008579]
[1732762515852,0.104228,95943.0,95941.0,0.0018579]
[1732762516267,0.10284521,95951.0,95941.0,0.0018579]
[1732762516268,0.20707421,95942.0,95941.0,0.0018579]
[1732762516269,0.20938016,95942.0,95941.0,0.0018579]
[1732762516420,0.23238016,95942.0,95941.0,0.0018579]
[1732762516631,0.45697421,95942.0,95941.0,0.0018579]
[1732762516831,0.46166727,95942.0,95941.0,0.0018579]
[1732762517063,0.49390758,95942.0,95941.0,0.0008579]
[1732762517264,0.46166727,95942.0,95941.0,0.0008579]
[1732762517475,0.46166727,95942.0,95941.0,0.0018579]
[1732762517835,0.46166727,95942.0,95941.0,0.0008579]
[1732762518256,0.46966727,95942.0,95941.0,0.0008579]
[1732762519380,0.104258,95915.0,95914.0,0.0008589]
[1732762519586,0.21203765,95915.0,95914.0,0.0008589]
[1732762519795,0.21434453,95915.0,95914.0,0.0008589]
[1732762520301,0.21203765,95915.0,95914.0,0.0008589]
[1732762520533,0.10777965,95915.0,95914.0,0.0008589]
[1732762520750,0.21203765,95915.0,95914.0,0.0008589]
[1732762520960,0.21303765,95915.0,95914.0,0.0028589]
[1732762521630,0.21303765,95915.0,95914.0,0.0008589]
[1732762522061,0.10877965,95915.0,95914.0,0.0008589]
[1732762522273,0.21303765,95915.0,95914.0,0.0008589]
[1732762529554,0.10877965,95915.0,95904.0,0.0104271]
[1732762529782,0.277262,95912.0,95904.0,0.0104271]
[1732762530011,0.38495735,95912.0,95904.0,0.0104271]
[1732762531144,0.36495735,95912.0,95904.0,0.0104271]
[1732762531366,0.36195735,95912.0,95904.0,0.0104271]
[1732762531835,0.37095735,95912.0,95904.0,0.0104271]
[1732762532047,0.36195735,95912.0,95904.0,0.0104271]
[1732762532261,0.37095735,95912.0,95904.0,0.0104271]
[1732762532477,0.37295735,95912.0,95904.0,0.0104271]
[1732762532890,0.01585014,95912.0,95904.0,0.0104271]
[1732762533551,0.11111214,95912.0,95904.0,0.0104271]
[1732762533773,0.11611214,95912.0,95904.0,0.0104271]
[1732762533995,0.11411214,95912.0,95904.0,0.0104271]
[1732762534199,0.00685014,95912.0,95904.0,0.0104271]
[1732762534424,0.01085014,95912.0,95904.0,0.0104271]
[1732762534636,0.00685014,95912.0,95904.0,0.0104271]
[1732762534848,0.10911214,95912.0,95904.0,0.0104271]
[1732762535067,0.11411214,95912.0,95904.0,0.0104271]
[1732762535294,0.11011214,95912.0,95904.0,0.0104271]
[1732762535731,0.10911214,95912.0,95904.0,0.0104271]
[1732762537020,0.21295735,95912.0,95904.0,0.0104271]
[1732762537230,0.21195735,95912.0,95904.0,0.0104271]
[1732762537695,0.21295735,95912.0,95911.0,0.0014]
[1732762539666,0.44395735,95912.0,95911.0,0.0022582]
[1732762540071,0.36295735,95912.0,95911.0,0.0022582]
[1732762541354,0.21295735,95912.0,95911.0,0.0022582]
[1732762542272,0.10869535,95912.0,95911.0,0.0022582]
[1732762542711,0.21295735,95912.0,95911.0,0.0022582]
[1732762543158,0.11011214,95912.0,95911.0,0.0022582]
[1732762543380,0.00585014,95912.0,95911.0,0.0022582]
[1732762544006,0.001,95912.0,95911.0,0.0022582]
[1732762544850,0.00583043,95912.0,95911.0,0.0022582]
[1732762545068,0.001,95912.0,95911.0,0.0022582]
[1732762545743,0.001,95912.0,95911.0,0.1065212]
[1732762547111,0.001,95912.0,95911.0,0.0022582]
[1732762547808,0.00582761,95912.0,95911.0,0.0022582]
[1732762548281,0.11008961,95912.0,95911.0,0.0022582]
[1732762548514,0.00582761,95912.0,95911.0,0.0022582]
[1732762548739,0.11008961,95912.0,95911.0,0.0022582]
[1732762549439,0.48753482,95912.0,95911.0,0.0022582]
[1732762550323,0.48653482,95912.0,95911.0,0.0012582]
[1732762550793,0.49253482,95912.0,95911.0,0.0012582]
[1732762551211,0.49253482,95912.0,95904.0,0.0104271]
[1732762551212,0.277269,95905.0,95904.0,0.0104271]
[1732762551418,0.36195705,95905.0,95904.0,0.0104271]
[1732762553713,0.36495705,95905.0,95904.0,0.0104271]
[1732762553927,0.37095705,95905.0,95904.0,0.0104271]
[1732762555931,0.39395705,95905.0,95904.0,0.0104271]
[1732762560349,0.37095705,95905.0,95904.0,0.0104271]
[1732762560561,0.01384284,95905.0,95904.0,0.0104271]
[1732762561620,0.11511184,95905.0,95904.0,0.0104271]
[1732762561852,0.110269,95905.0,95904.0,0.0104271]
[1732762562043,0.01076284,95905.0,95904.0,0.0104271]
[1732762562513,0.01076284,95905.0,95904.0,0.1146971]
[1732762562730,0.006,95905.0,95904.0,0.1146971]
[1732762563177,0.009,95905.0,95904.0,0.125253]
[1732762563422,0.003,95905.0,95904.0,0.15576033]
[1732762563636,0.0017164,95914.0,95913.0,0.104261]
[1732762564983,0.0017164,95914.0,95913.0,0.185661]
[1732762566582,0.0017164,95914.0,95913.0,0.28950621]
[1732762566795,0.0027164,95914.0,95913.0,0.80184039]
[1732762567028,0.0027164,95914.0,95913.0,0.80984039]
[1732762567257,0.0027164,95914.0,95913.0,0.98993674]
[1732762567258,0.0017164,95914.0,95913.0,0.98993674]
[1732762567497,0.0037164,95914.0,95913.0,0.60982816]
[1732762567754,0.0037164,95914.0,95913.0,0.46950621]
[1732762567978,0.0017164,95914.0,95912.0,0.09352165]
[1732762568223,0.0017164,95914.0,95901.0,0.288946]
[1732762568224,0.1079764,95914.0,95913.0,0.014]
[1732762568705,0.23382161,95914.0,95913.0,0.014]
[1732762569697,0.23282161,95914.0,95913.0,0.007]
[1732762569909,0.23282161,95914.0,95913.0,0.005]
[1732762570388,0.23282161,95914.0,95913.0,0.007]
[1732762570630,0.104269,95905.0,95904.0,0.0112851]
[1732762573193,0.108269,95905.0,95904.0,0.0112851]
[1732762573423,0.104269,95905.0,95904.0,0.0112851]
[1732762573884,0.111269,95905.0,95904.0,0.0112851]
[1732762574129,0.106269,95905.0,95904.0,0.0112851]
[1732762574358,0.110269,95905.0,95904.0,0.0112851]
[1732762574813,0.104269,95905.0,95904.0,0.0112851]
[1732762575038,0.109269,95905.0,95904.0,0.0112851]
[1732762575729,0.109269,95905.0,95904.0,0.0062851]
[1732762576146,0.005,95905.0,95904.0,0.0062851]
[1732762576357,0.002,95905.0,95904.0,0.0012851]
[1732762576627,0.106269,95905.0,95904.0,0.0012851]
[1732762576822,0.110269,95905.0,95904.0,0.0012851]
[1732762577055,0.104269,95905.0,95904.0,0.0012851]
[1732762577261,0.106269,95905.0,95904.0,0.0012851]
[1732762577482,0.111269,95905.0,95904.0,0.0012851]
[1732762577701,0.21054,95905.0,95887.0,0.1162351]
[1732762577963,0.023,95912.0,95888.0,0.208576]
[1732762578163,0.002,95905.0,95904.0,0.000858]
[1732762578377,0.002,95905.0,95894.0,0.204421]
[1732762578587,0.006,95905.0,95887.0,0.0119471]
[1732762578797,0.006,95905.0,95888.0,0.104288]
[1732762579018,0.006,95905.0,95887.0,0.0119471]
[1732762579256,0.104271,95904.0,95889.0,0.104286]
[1732762579469,0.006,95905.0,95887.0,0.0119471]
[1732762579470,0.1251286,95900.0,95887.0,0.0119471]
[1732762579693,0.1251286,95900.0,95887.0,0.0069471]
[1732762579935,0.1251286,95900.0,95888.0,0.104287]
[1732762580167,0.002,95905.0,95887.0,0.0069471]
[1732762580168,0.10427,95904.0,95889.0,0.104286]
[1732762580416,0.10427,95904.0,95888.0,0.001]
[1732762580417,0.104287,95889.0,95888.0,0.001]
[1732762580660,0.127288,95888.0,95887.0,0.0069471]
[1732762580874,0.2324407,95888.0,95887.0,0.0069471]
[1732762581092,0.23013321,95888.0,95887.0,0.0069471]
[1732762583831,0.23013321,95888.0,95887.0,0.0089471]
[1732762584047,0.23013321,95888.0,95887.0,0.0069471]
[1732762584930,0.23013321,95888.0,95887.0,0.0079471]
[1732762586043,0.23013321,95888.0,95887.0,0.0069471]
[1732762587378,0.24413321,95888.0,95887.0,0.0079471]
[1732762587597,0.23513321,95888.0,95887.0,0.0079471]
[1732762588055,0.23913321,95888.0,95887.0,0.0069471]
[1732762588293,0.24413321,95888.0,95887.0,0.0079471]
[1732762590815,0.24413321,95888.0,95887.0,0.0088053]
[1732762593373,0.51513321,95888.0,95887.0,3e-07]
[1732762593820,0.50113321,95888.0,95887.0,3e-07]
[1732762594057,0.50713321,95888.0,95887.0,3e-07]
[1732762594273,0.52613321,95888.0,95887.0,3e-07]
[1732762594475,0.51113321,95888.0,95887.0,3e-07]
[1732762594701,0.52013321,95888.0,95887.0,3e-07]
[1732762594922,0.52913321,95888.0,95887.0,3e-07]
[1732762595343,0.104305,95872.0,95871.0,0.0004]
[1732762595550,0.50345849,95872.0,95871.0,0.0004]
[1732762595759,0.50115021,95872.0,95871.0,0.0004]
[1732762596232,0.50115021,95872.0,95871.0,1e-06]
[1732762597093,0.51015021,95872.0,95871.0,1e-06]
[1732762597538,0.50115021,95872.0,95871.0,1e-06]
[1732762597745,0.51015021,95872.0,95871.0,1e-06]
[1732762597945,0.50715021,95872.0,95871.0,1e-06]
[1732762598374,0.51015021,95872.0,95871.0,1e-06]
[1732762598998,0.51915021,95872.0,95871.0,1e-06]
[1732762599612,1.21915021,95872.0,95871.0,1e-06]
[1732762601109,1.22929575,95872.0,95871.0,1e-06]
[1732762604493,1.22029575,95872.0,95871.0,0.0008592]
[1732762605181,1.22929575,95872.0,95871.0,0.0008592]
[1732762605882,0.52929575,95872.0,95871.0,0.0008592]
[1732762607489,1.22929575,95872.0,95871.0,0.0008592]
[1732762615585,1.26142978,95872.0,95871.0,0.0008592]
[1732762616062,1.23929575,95872.0,95871.0,2e-07]
[1732762616272,1.27142997,95872.0,95871.0,2e-07]
[1732762618323,1.27314677,95872.0,95871.0,2e-07]
[1732762619254,0.57314677,95872.0,95871.0,2e-07]
[1732762620912,0.56314677,95872.0,95871.0,2e-07]
[1732762622212,0.38701255,95872.0,95871.0,2e-07]
[1732762622642,0.23701255,95872.0,95871.0,2e-07]
[1732762624263,0.25101255,95872.0,95871.0,2e-07]
[1732762624473,0.24201255,95872.0,95871.0,2e-07]
[1732762624686,0.25101255,95872.0,95871.0,2e-07]
[1732762624898,0.26001255,95872.0,95871.0,2e-07]
[1732762626636,0.27634342,95872.0,95871.0,2e-07]
[1732762627681,0.25334342,95872.0,95871.0,2e-07]
[1732762631615,0.127317,95861.0,95860.0,0.000858]
[1732762631831,0.35877061,95861.0,95860.0,0.000858]
[1732762632052,0.35646221,95861.0,95860.0,0.000858]
[1732762632253,0.38869389,95861.0,95860.0,0.000858]
[1732762632675,0.35646221,95861.0,95860.0,0.000858]
[1732762632884,0.36546221,95861.0,95860.0,0.000858]
[1732762634168,0.35646221,95861.0,95860.0,0.000858]
[1732762634383,0.23016221,95861.0,95860.0,0.000858]
[1732762634585,0.24616221,95861.0,95860.0,0.000858]
[1732762634820,0.53448693,95861.0,95860.0,0.000858]
[1732762635013,0.57671614,95861.0,95860.0,0.000858]
[1732762635225,0.90361262,95861.0,95860.0,0.000858]
[1732762635428,0.91161262,95861.0,95860.0,0.000858]
[1732762635916,0.89461262,95861.0,95860.0,0.000858]
[1732762636102,0.90361262,95861.0,95860.0,0.000858]
[1732762636330,0.90261262,95861.0,95860.0,0.000858]
[1732762636747,1.08805895,95861.0,95860.0,0.000858]
[1732762636957,1.13442054,95861.0,95860.0,0.000858]
[1732762637173,1.13441784,95861.0,95860.0,0.000858]
[1732762637374,0.90261262,95861.0,95860.0,0.000858]
[1732762637577,0.89361262,95861.0,95860.0,0.000858]
[1732762637783,0.90210566,95861.0,95860.0,0.000858]
[1732762638003,1.14298851,95861.0,95860.0,0.000858]
[1732762638232,0.91110566,95861.0,95860.0,0.000858]
[1732762638475,0.90962012,95861.0,95851.0,0.0004]
[1732762638670,0.90962012,95861.0,95845.0,0.0008581]
[1732762638671,0.104334,95846.0,95845.0,0.0008581]
[1732762638874,0.32293813,95846.0,95845.0,0.0008581]
[1732762639286,0.23017921,95846.0,95845.0,0.0008581]
[1732762639499,0.47293813,95846.0,95845.0,0.0008581]
[1732762639746,0.64411759,95846.0,95845.0,0.0008581]
[1732762639929,0.50497921,95846.0,95845.0,0.0008581]
[1732762640601,0.64408965,95846.0,95845.0,0.0008581]
[1732762641019,0.51543785,95846.0,95845.0,0.0008581]
[1732762641226,0.86677341,95846.0,95845.0,0.0008581]
[1732762641438,0.87544695,95846.0,95845.0,0.0008581]
[1732762641641,0.66317952,95846.0,95845.0,0.0008581]
[1732762641830,0.67217952,95846.0,95845.0,0.0008581]
[1732762642117,0.66317952,95846.0,95845.0,0.0008581]
[1732762642344,0.67217952,95846.0,95845.0,0.0008581]
[1732762642570,0.53311139,95846.0,95845.0,0.0008581]
[1732762642792,0.52411139,95846.0,95845.0,0.0008581]
[1732762643010,0.53311139,95846.0,95845.0,0.0008581]
[1732762643486,0.52411139,95846.0,95845.0,0.0008581]
[1732762644370,0.51511139,95846.0,95845.0,0.0008581]
[1732762644585,0.61674531,95846.0,95845.0,0.0008581]
[1732762644801,0.62574531,95846.0,95845.0,0.0008581]
[1732762645021,0.54664531,95846.0,95845.0,0.0008581]
[1732762645234,0.53764531,95846.0,95845.0,0.0008581]
[1732762645668,0.45301139,95846.0,95845.0,0.0008581]
[1732762646136,0.40731139,95846.0,95845.0,0.0008581]
[1732762648973,0.45301139,95846.0,95845.0,0.0008581]
[1732762649421,0.43601139,95846.0,95845.0,0.0008581]
[1732762649912,0.44501139,95846.0,95845.0,0.0008581]
[1732762651085,0.45401139,95846.0,95845.0,0.0008581]
[1732762651306,0.43601139,95846.0,95845.0,0.0008581]
[1732762651532,0.45401139,95846.0,95845.0,0.0008581]
[1732762651767,0.45401139,95846.0,95832.0,0.00036]
[1732762651768,0.104335,95845.0,95844.0,0.1299911]
[1732762651986,0.104335,95845.0,95844.0,0.1091241]
[1732762651987,0.51728898,95845.0,95844.0,0.1091241]
[1732762652221,0.88870958,95845.0,95844.0,0.0256561]
[1732762652442,1.51298816,95845.0,95844.0,0.0256561]
[1732762652690,0.412148,95833.0,95832.0,0.00036]
[1732762652903,0.51499321,95833.0,95832.0,0.00036]
[1732762653123,0.85660628,95833.0,95832.0,0.00036]
[1732762653647,0.65369068,95833.0,95832.0,0.00036]
[1732762655288,0.50499321,95833.0,95832.0,0.00036]
[1732762655514,0.51399321,95833.0,95832.0,0.00036]
[1732762655762,0.52399321,95833.0,95832.0,0.00036]
[1732762655994,0.53299321,95833.0,95832.0,0.00036]
[1732762656243,0.53299321,95833.0,95832.0,0.0012186]
[1732762656464,0.52299321,95833.0,95832.0,0.0012186]
[1732762659417,0.44389321,95833.0,95832.0,0.0012186]
[1732762659658,0.39819321,95833.0,95832.0,0.0012186]
[1732762660100,0.40829035,95833.0,95832.0,0.0012186]
[1732762662613,1.10829035,95833.0,95832.0,0.0012186]
[1732762664166,1.11829035,95833.0,95832.0,0.0012186]
[1732762665114,1.10929035,95833.0,95832.0,0.0012186]
[1732762665342,1.10029035,95833.0,95832.0,0.0012186]
[1732762665567,1.14138784,95833.0,95832.0,0.0012186]
[1732762666014,1.13238784,95833.0,95832.0,0.0012186]
[1732762666242,1.15038784,95833.0,95832.0,0.0012186]
[1732762666473,1.14138784,95833.0,95832.0,0.0012186]
[1732762666695,0.44138784,95833.0,95832.0,0.0012186]
[1732762666925,0.43238784,95833.0,95832.0,0.0012186]
[1732762668332,0.45038784,95833.0,95832.0,0.0012186]
[1732762668553,0.44138784,95833.0,95832.0,0.0012186]
[1732762668970,0.49988784,95833.0,95832.0,0.0012186]
[1732762669255,0.59218234,95833.0,95832.0,0.0012186]
[1732762669704,0.287349,95832.0,95831.0,0.00034513]
[1732762669924,0.59579866,95832.0,95831.0,0.00034513]
[1732762670637,0.58580958,95832.0,95831.0,0.00034513]
[1732762670867,0.4122917,95832.0,95831.0,0.00034513]
[1732762671771,0.38019421,95832.0,95831.0,0.00034513]
[1732762672487,0.38919421,95832.0,95831.0,0.00034513]
[1732762672718,0.39819421,95832.0,95831.0,0.00034513]
[1732762674115,0.37519421,95832.0,95831.0,0.00034513]
[1732762674774,0.36619421,95832.0,95831.0,0.00034513]
[1732762675228,0.36519421,95832.0,95831.0,0.00034513]
[1732762675698,0.36619421,95832.0,95831.0,0.00034513]
[1732762675918,0.36419421,95832.0,95831.0,0.00034513]
[1732762676139,0.37319421,95832.0,95831.0,0.00034513]
[1732762678414,0.39619421,95832.0,95831.0,0.00034513]
[1732762678664,0.52067974,95832.0,95831.0,0.00034513]
[1732762678872,0.42836186,95832.0,95831.0,0.00034513]
[1732762679111,0.42136186,95832.0,95831.0,0.00034513]
[1732762679571,0.55980361,95832.0,95831.0,0.00034513]
[1732762680006,0.56880361,95832.0,95831.0,0.00034513]
[1732762680551,0.94763615,95832.0,95831.0,0.00034513]
[1732762680689,0.76304714,95832.0,95831.0,0.00034513]
[1732762680948,0.76304714,95832.0,95831.0,0.00120373]
[1732762681401,0.75404714,95832.0,95831.0,0.00120373]
[1732762681650,0.42136186,95832.0,95831.0,0.00120373]
[1732762682331,0.85332775,95832.0,95831.0,0.00120373]
[1732762682573,0.90142775,95832.0,95831.0,0.00120373]
[1732762683045,0.90142775,95832.0,95831.0,7.3e-07]
[1732762683284,1.01425921,95832.0,95831.0,7.3e-07]
[1732762683513,1.01425921,95832.0,95818.0,0.0008581]
[1732762683514,0.01,95820.0,95818.0,0.0008581]
[1732762683742,0.41468552,95819.0,95818.0,0.0008581]
[1732762683977,0.59756204,95819.0,95818.0,0.0008581]
[1732762684204,1.06336076,95819.0,95818.0,0.0008581]
[1732762684506,1.06336076,95819.0,95815.0,1e-07]
[1732762684507,0.277366,95816.0,95815.0,1e-07]
[1732762684735,0.41237886,95816.0,95815.0,1e-07]
[1732762684995,0.75417758,95816.0,95815.0,1e-07]
[1732762686141,0.76433525,95816.0,95815.0,1e-07]
[1732762686620,0.77333525,95816.0,95815.0,1e-07]
[1732762686877,0.78967872,95816.0,95815.0,1e-07]
[1732762688261,0.79767872,95816.0,95815.0,1e-07]
[1732762689898,0.80767872,95816.0,95815.0,1e-07]
[1732762690823,0.01,95814.0,95786.0,0.05733747]
[1732762691060,0.104398,95787.0,95786.0,0.05733747]
[1732762691347,0.20724321,95787.0,95786.0,0.05733747]
[1732762691596,0.20724321,95787.0,95786.0,0.02733747]
[1732762692974,0.20824321,95787.0,95786.0,0.02733747]
[1732762693259,0.18324321,95787.0,95786.0,0.02733747]
[1732762693455,0.1044,95785.0,95775.0,0.0008584]
[1732762693691,0.20724521,95785.0,95775.0,0.0008584]
[1732762694610,0.20724521,95785.0,95781.0,0.0803]
[1732762699529,0.20724521,95785.0,95775.0,0.0008584]
[1732762699797,0.20955512,95785.0,95775.0,0.0008584]
[1732762700269,0.33605512,95785.0,95775.0,0.0008584]
[1732762700504,0.33605512,95785.0,95784.0,4e-07]
[1732762700505,0.51274521,95785.0,95784.0,4e-07]
[1732762700746,0.52274521,95785.0,95784.0,4e-07]
[1732762700994,0.69365847,95785.0,95784.0,4e-07]
[1732762701272,0.57623304,95785.0,95784.0,4e-07]
[1732762701509,0.57623304,95785.0,95775.0,0.0008189]